bitfinex-derivatives/quotes_SOLF0:USTF0_20250914
["timestamp","ask_amount","ask_price","bid_price","bid_amount"]
[1757853668873,6.7,245.87,245.69,6.75]
[1757853669071,6.7,245.85,245.69,6.75]
[1757853669373,6.7,245.83,245.77,0.02757739]
[1757853669575,32.5,245.89,245.77,0.02757739]
[1757853669777,9.58166836,245.88,245.77,0.02757739]
[1757853669975,6.7,245.86,245.77,0.02757739]
[1757853670172,6.7,245.84,245.77,0.02757739]
[1757853670373,2.88166836,245.83,245.77,0.02757739]
[1757853670577,9.58166836,245.82,245.77,0.02757739]
[1757853670775,2.88166836,245.81,245.77,0.02757739]
[1757853671074,6.7,245.88,245.77,0.02757739]
[1757853671275,6.7,245.86,245.77,0.02757739]
[1757853671574,6.7,245.84,245.77,0.02757739]
[1757853671968,2.88197693,245.83,245.77,0.02757739]
[1757853672174,6.7,245.84,245.77,0.02757739]
[1757853673682,2.89814177,245.83,245.77,0.02757739]
[1757853673982,6.7,245.84,245.77,0.02757739]
[1757853674182,2.89814177,245.83,245.77,0.02757739]
[1757853674685,6.7,245.84,245.77,0.02757739]
[1757853675183,75.64,245.88,245.77,0.02757739]
[1757853675484,6.7,245.86,245.77,0.02757739]
[1757853675881,6.7,245.84,245.77,0.02757739]
[1757853676581,75.64,245.88,245.77,0.02757739]
[1757853676782,6.7,245.86,245.77,0.02757739]
[1757853676988,6.7,245.84,245.77,0.02757739]
[1757853677177,6.7,245.82,245.77,0.02757739]
[1757853677380,6.7,245.87,245.77,0.02757739]
[1757853677580,6.7,245.85,245.77,0.02757739]
[1757853677783,6.7,245.83,245.77,0.02757739]
[1757853680787,82.34,245.88,245.77,0.02757739]
[1757853680987,2.8965159,245.87,245.77,0.02757739]
[1757853681283,82.34,245.88,245.77,0.02757739]
[1757853681491,2.89610505,245.87,245.77,0.02757739]
[1757853681784,9.59610505,245.86,245.77,0.02757739]
[1757853681985,6.7,245.84,245.77,0.02757739]
[1757853682689,2.89616113,245.83,245.77,0.02757739]
[1757853682989,2.89618474,245.82,245.77,0.02757739]
[1757853683189,6.7,245.87,245.77,0.02757739]
[1757853683389,6.7,245.85,245.77,0.02757739]
[1757853683588,6.7,245.83,245.77,0.02757739]
[1757853683784,6.7,245.81,245.77,0.02757739]
[1757853683990,6.7,245.87,245.77,0.02757739]
[1757853684183,6.7,245.85,245.77,0.02757739]
[1757853684384,6.7,245.83,245.77,0.02757739]
[1757853684584,6.7,245.87,245.77,0.02757739]
[1757853684783,6.7,245.85,245.77,0.02757739]
[1757853684988,6.7,245.83,245.77,0.02757739]
[1757853689783,6.53,245.85,245.77,0.02757739]
[1757853689994,6.53,245.83,245.77,0.02757739]
[1757853690291,6.53,245.81,245.77,0.02757739]
[1757853690489,2.89631089,245.82,245.66,6.87]
[1757853690490,6.53,245.79,245.66,6.87]
[1757853690692,6.53,245.77,245.66,6.87]
[1757853691692,2.89527827,245.76,245.66,6.87]
[1757853691888,6.53,245.77,245.66,6.87]
[1757853692089,0.02855131,245.73,245.66,6.87]
[1757853696095,0.02855131,245.73,245.66,7.27]
[1757853696795,0.02855131,245.73,245.67,6.87]
[1757853699196,6.53,245.87,245.69,6.87]
[1757853699896,6.53,245.87,245.7,6.87]
[1757853700395,6.53,245.87,245.76,0.02568435]
[1757853700591,6.53,245.87,245.77,6.87]
[1757853701495,1.3,245.91,245.76,0.02568435]
[1757853701496,6.53,245.85,245.76,0.02568435]
[1757853701695,6.53,245.83,245.76,0.02568435]
[1757853701894,6.53,245.81,245.67,6.87]
[1757853702097,6.53,245.79,245.67,6.87]
[1757853702298,6.53,245.88,245.77,0.03095175]
[1757853702600,6.53,245.86,245.67,6.87]
[1757853702800,6.53,245.84,245.8,0.02847727]
[1757853702994,2.90150231,245.83,245.8,0.02847727]
[1757853703196,9.43150231,245.82,245.67,6.87]
[1757853703402,6.53,245.8,245.67,6.87]
[1757853703598,6.53,245.78,245.67,6.87]
[1757853703901,6.53,245.76,245.6,6.87]
[1757853704093,2.89713436,245.75,245.6,6.87]
[1757853704293,2.89713436,245.74,245.6,6.87]
[1757853704493,0.02684059,245.7,245.6,6.87]
[1757853705498,6.53,245.69,245.6,6.87]
[1757853705703,2.896464,245.68,245.55,8.61429]
[1757853706002,2.89682533,245.67,245.55,8.61429]
[1757853706204,6.53,245.69,245.55,8.61429]
[1757853706502,2.89513488,245.68,245.55,8.61429]
[1757853706702,6.53,245.69,245.55,8.61429]
[1757853706897,6.53,245.69,245.56,6.87]
[1757853707908,6.53,245.69,245.56,13.69350899]
[1757853708205,6.53,245.69,245.56,6.87]
[1757853709703,6.53,245.67,245.56,6.87]
[1757853709904,6.53,245.65,245.55,1.74429]
[1757853710305,36.87,245.65,245.55,1.74429]
[1757853710504,2.89095109,245.64,245.55,1.74429]
[1757853710700,6.53,245.63,245.55,1.74429]
[1757853712703,33.48,245.71,245.55,1.74429]
[1757853712903,6.6,245.7,245.55,1.74429]
[1757853714107,39.88,245.7,245.55,1.74429]
[1757853714308,6.6,245.7,245.55,1.74429]
[1757853714502,33.2,245.69,245.55,1.74429]
[1757853714710,6.6,245.7,245.55,1.74429]
[1757853714711,64.92,245.68,245.55,1.74429]
[1757853714910,6.6,245.7,245.55,1.74429]
[1757853715106,33.54,245.69,245.55,1.74429]
[1757853715905,6.6,245.68,245.55,1.74429]
[1757853718607,6.6,245.68,245.56,6.47]
[1757853720419,89.74,245.72,245.56,6.47]
[1757853720608,6.91,245.71,245.56,6.47]
[1757853722307,6.91,245.88,245.57,6.47]
[1757853722511,6.91,245.86,245.57,6.47]
[1757853722809,276.32603978,245.87,245.57,6.47]
[1757853722810,6.91,245.84,245.57,6.47]
[1757853723012,6.91,245.82,245.57,6.47]
[1757853723209,6.91,245.8,245.57,6.47]
[1757853723605,6.91,245.78,245.57,6.47]
[1757853724611,6.91,245.78,245.59,6.47]
[1757853726418,6.91,245.76,245.59,6.47]
[1757853726917,6.91,245.74,245.59,6.47]
[1757853727117,47.21,245.74,245.59,6.47]
[1757853727317,56.77,245.74,245.59,6.47]
[1757853727718,6.91,245.74,245.59,6.47]
[1757853727915,6.91,245.74,245.55,1.74429]
[1757853728121,6.91,245.72,245.55,1.74429]
[1757853728324,12.2,245.83,245.55,1.74429]
[1757853728325,6.91,245.7,245.55,1.74429]
[1757853729115,20.01,245.7,245.56,6.47]
[1757853729420,6.91,245.7,245.56,6.47]
[1757853731322,13.73,245.7,245.56,6.47]
[1757853731624,6.91,245.7,245.56,6.47]
[1757853733417,6.56,245.76,245.56,6.82350899]
[1757853733623,6.91,245.76,245.58,6.47]
[1757853735921,6.91,245.74,245.58,6.47]
[1757853739218,18.71,245.74,245.58,6.47]
[1757853739416,24.69,245.74,245.58,6.47]
[1757853739620,30.37,245.74,245.58,6.47]
[1757853739824,35.77,245.74,245.58,6.47]
[1757853740329,40.89,245.74,245.58,6.47]
[1757853743725,45.75,245.74,245.58,6.47]
[1757853743920,6.91,245.74,245.58,6.47]
[1757853744321,6.91,245.74,245.59,6.82350899]
[1757853744518,6.91,245.74,245.61,6.47]
[1757853746824,6.91,245.74,245.62,6.47]
[1757853747026,6.91,245.86,245.63,6.47]
[1757853747228,6.91,245.84,245.64,6.47]
[1757853747426,44.79367583,245.83,245.64,6.47]
[1757853747627,6.91,245.82,245.64,6.47]
[1757853748422,0.03089943,245.75,245.64,6.47]
[1757853754937,6.59,245.74,245.64,6.47]
[1757853758343,6.59,245.74,245.58,54.56350899]
[1757853758344,6.59,245.74,245.59,6.93]
[1757853760548,6.59,245.74,245.59,13.75350899]
[1757853760748,6.59,245.74,245.59,6.82350899]
[1757853760949,6.59,245.74,245.6,6.93]
[1757853761149,6.59,245.74,245.61,6.93]
[1757853762255,6.59,245.74,245.61,13.75350899]
[1757853762553,6.59,245.74,245.61,6.93]
[1757853764144,2.89849553,245.73,245.61,6.93]
[1757853764453,6.59,245.72,245.61,6.93]
[1757853772960,6.74,245.85,245.64,6.82350899]
[1757853773261,6.74,245.83,245.65,6.72]
[1757853773466,6.74,245.81,245.65,6.72]
[1757853773669,6.74,245.79,245.65,6.72]
[1757853773858,6.74,245.77,245.65,6.72]
[1757853774163,9.46,245.84,245.65,6.72]
[1757853774364,9.63829514,245.83,245.65,6.72]
[1757853774566,6.74,245.81,245.65,6.72]
[1757853774866,6.74,245.79,245.65,6.72]
[1757853775067,6.74,245.77,245.65,6.72]
[1757853775368,6.74,245.75,245.65,6.72]
[1757853781068,6.56,245.81,245.65,6.72]
[1757853781269,6.56,245.79,245.65,6.72]
[1757853781463,2.8993701,245.78,245.65,6.72]
[1757853781663,6.56,245.79,245.65,6.72]
[1757853782767,6.56,245.79,245.66,6.8]
[1757853783172,6.56,245.77,245.66,6.8]
[1757853784270,2.89861683,245.76,245.66,6.8]
[1757853784468,6.56,245.75,245.66,6.8]
[1757853785573,6.56,245.75,245.61,6.8]
[1757853785977,6.56,245.73,245.58,6.82350899]
[1757853786369,6.56,245.81,245.57,13.62350899]
[1757853786565,2.89845933,245.8,245.59,6.82350899]
[1757853786874,6.56,245.78,245.6,6.8]
[1757853787074,6.56,245.76,245.6,6.8]
[1757853787277,6.56,245.76,245.6,13.62350899]
[1757853787469,6.56,245.76,245.61,6.8]
[1757853787672,6.56,245.74,245.61,6.8]
[1757853788279,2.89851535,245.73,245.61,6.8]
[1757853788480,6.56,245.72,245.61,6.8]
[1757853792774,6.56,245.72,245.62,6.82350899]
[1757853792978,6.56,245.78,245.63,6.8]
[1757853793180,2.89850638,245.77,245.63,6.8]
[1757853793478,6.56,245.78,245.63,6.8]
[1757853794279,2.88821095,245.77,245.63,6.8]
[1757853794479,6.56,245.75,245.63,6.8]
[1757853796881,6.56,245.8,245.64,6.82350899]
[1757853797076,6.56,245.8,245.65,6.8]
[1757853797282,2.88942736,245.79,245.65,6.8]
[1757853797484,9.44944941,245.78,245.65,6.8]
[1757853797682,6.56,245.78,245.65,6.8]
[1757853798982,6.56,245.86,245.66,6.8]
[1757853799278,6.56,245.84,245.66,6.8]
[1757853799478,6.56,245.82,245.66,6.8]
[1757853799780,6.56,245.8,245.66,6.8]
[1757853800482,6.56,245.78,245.66,6.8]
[1757853801785,2.88919046,245.77,245.66,6.8]
[1757853802079,6.56,245.78,245.66,6.8]
[1757853802282,2.88898576,245.77,245.62,13.62350899]
[1757853802481,9.44877333,245.76,245.62,6.8]
[1757853802686,2.88877333,245.75,245.62,6.8]
[1757853802985,6.56,245.76,245.62,6.8]
[1757853803480,2.88887891,245.75,245.62,6.8]
[1757853803681,6.56,245.76,245.62,6.8]
[1757853804091,2.88886235,245.75,245.62,6.8]
[1757853804288,6.56,245.76,245.62,6.8]
[1757853804589,11.04325464,245.85,245.62,6.8]
[1757853804887,6.56,245.83,245.62,6.8]
[1757853805084,6.56,245.81,245.62,6.8]
[1757853805284,6.56,245.79,245.62,6.8]
[1757853805583,6.56,245.77,245.62,6.8]
[1757853805790,6.56,245.75,245.62,6.8]
[1757853807588,6.56,245.85,245.62,6.8]
[1757853807788,6.56,245.83,245.62,6.8]
[1757853807993,2.9533043,245.82,245.62,6.8]
[1757853808190,2.9533043,245.81,245.62,6.8]
[1757853808389,2.9533043,245.8,245.62,6.8]
[1757853808590,6.56,245.83,245.62,6.8]
[1757853808790,2.95280457,245.82,245.62,6.8]
[1757853808991,2.95280457,245.81,245.62,6.8]
[1757853809192,2.95280457,245.8,245.62,6.8]
[1757853809387,6.56,245.83,245.62,6.8]
[1757853809588,2.9526477,245.82,245.57,9.0721105]
[1757853809796,2.9526477,245.81,245.59,6.84]
[1757853810088,2.9526477,245.8,245.59,6.84]
[1757853810288,2.95285049,245.79,245.61,6.84]
[1757853810591,6.56,245.83,245.61,6.84]
[1757853810891,2.95259025,245.82,245.61,6.84]
[1757853811190,2.95259025,245.81,245.63,6.84]
[1757853811390,2.95259025,245.8,245.63,6.84]
[1757853811592,6.56,245.83,245.63,6.84]
[1757853811893,2.95228168,245.82,245.63,6.84]
[1757853812093,2.95228168,245.81,245.63,6.84]
[1757853812391,6.56,245.83,245.63,6.84]
[1757853812893,6.87,245.81,245.6,6.84]
[1757853813094,273.44,245.87,245.58,9.0721105]
[1757853813291,6.87,245.85,245.6,6.84]
[1757853813486,6.87,245.83,245.6,6.84]
[1757853813691,6.87,245.81,245.62,6.84]
[1757853813892,6.87,245.81,245.58,9.0721105]
[1757853814093,6.87,245.81,245.59,6.84]
[1757853814488,6.87,245.81,245.6,68.84]
[1757853814690,6.87,245.81,245.61,6.84]
[1757853815393,6.87,245.81,245.63,6.84]
[1757853815593,2.94496771,245.8,245.63,6.84]
[1757853815790,6.87,245.78,245.65,6.84]
[1757853817594,6.87,245.78,245.61,6.84]
[1757853817794,6.87,245.78,245.63,6.84]
[1757853818095,6.87,245.78,245.65,6.84]
[1757853818593,6.87,245.78,245.65,107.68]
[1757853819393,6.87,245.78,245.65,6.84]
[1757853820495,6.87,245.78,245.66,35.4]
[1757853820800,6.87,245.78,245.67,6.84]
[1757853821295,6.87,245.86,245.67,6.84]
[1757853821499,6.87,245.84,245.67,6.84]
[1757853821700,6.87,245.82,245.67,6.84]
[1757853823993,6.87,245.82,245.61,6.84]
[1757853824199,6.87,245.82,245.69,6.84]
[1757853824399,6.87,245.8,245.69,6.84]
[1757853825593,6.87,245.87,245.69,6.84]
[1757853825799,6.87,245.85,245.69,6.84]
[1757853826002,6.87,245.83,245.69,6.84]
[1757853826200,4.48325464,245.88,245.69,6.84]
[1757853826201,6.87,245.81,245.69,6.84]
[1757853826401,6.87,245.79,245.69,6.84]
[1757853826702,6.87,245.77,245.6,62.0]
[1757853826897,6.87,245.77,245.62,6.84]
[1757853827101,11.35325464,245.86,245.62,6.84]
[1757853827303,6.87,245.84,245.62,107.6]
[1757853827508,6.87,245.82,245.62,6.84]
[1757853827702,6.87,245.8,245.62,6.84]
[1757853827903,6.87,245.78,245.62,6.84]
[1757853828205,4.48325464,245.84,245.62,6.84]
[1757853828206,6.87,245.76,245.62,6.84]
[1757853828405,6.87,245.74,245.62,6.84]
[1757853831302,6.87,245.74,245.57,273.32]
[1757853831502,6.87,245.74,245.59,6.84]
[1757853831703,6.87,245.74,245.6,100.76]
[1757853831903,6.87,245.74,245.62,6.84]
[1757853834102,2.94674383,245.73,245.58,6.61]
[1757853834304,6.61,245.72,245.58,6.61]
[1757853836414,6.61,245.86,245.58,6.61]
[1757853836609,6.61,245.83,245.58,15.6821105]
[1757853836906,17.52381093,245.89,245.57,374.06]
[1757853836907,6.61,245.81,245.59,6.61]
[1757853837124,13.04055629,245.89,245.6,62.0]
[1757853837125,2.9481028,245.8,245.6,62.0]
[1757853837310,9.55803067,245.79,245.61,6.61]
[1757853837617,2.94808946,245.78,245.61,6.61]
[1757853837817,6.61,245.79,245.61,6.61]
[1757853838018,6.56,245.77,245.61,6.61]
[1757853840714,6.56,245.77,245.63,6.99]
[1757853842518,7.74,245.86,245.63,6.99]
[1757853842519,6.56,245.75,245.63,42.29]
[1757853842716,6.56,245.84,245.63,42.29]
[1757853842911,6.56,245.82,245.63,42.29]
[1757853843115,2.94732454,245.81,245.63,42.29]
[1757853843313,2.94732454,245.8,245.63,42.29]
[1757853843521,2.94732454,245.79,245.63,42.29]
[1757853843717,2.94732454,245.78,245.63,42.29]
[1757853843918,6.56,245.76,245.63,42.29]
[1757853844220,6.56,245.84,245.63,42.29]
[1757853844415,2.94742273,245.83,245.63,42.29]
[1757853844618,2.94742273,245.82,245.63,42.29]
[1757853844813,2.94742273,245.81,245.63,42.29]
[1757853845019,2.94742273,245.8,245.63,42.29]
[1757853845218,6.56,245.78,245.63,42.29]
[1757853845420,6.56,245.76,245.63,42.29]
[1757853845620,2.94742273,245.75,245.63,42.29]
[1757853845817,6.56,245.83,245.63,42.29]
[1757853846023,6.56,245.81,245.63,6.99]
[1757853846322,2.94677599,245.8,245.6,32.2]
[1757853846615,2.94677599,245.79,245.6,32.2]
[1757853846821,9.50677599,245.78,245.61,6.99]
[1757853847024,6.56,245.76,245.61,6.99]
[1757853849213,6.56,245.76,245.63,6.99]
[1757853857124,6.56,245.76,245.63,68.99]
[1757853857324,6.56,245.76,245.64,6.99]
[1757853858228,0.02582745,245.72,245.64,6.99]
[1757853860721,6.58582745,245.72,245.64,6.99]
[1757853861425,6.58582745,245.72,245.61,28.98]
[1757853861828,6.56,245.71,245.61,28.98]
[1757853863034,6.56,245.71,245.62,6.99]
[1757853863631,0.02582745,245.72,245.62,6.99]
[1757853866933,6.56,245.71,245.62,6.99]
[1757853867733,0.02582745,245.72,245.62,6.99]
[1757853869940,0.02582745,245.72,245.63,62.0]
[1757853870138,0.02582745,245.72,245.64,6.88]
[1757853874042,7.05,245.71,245.64,6.88]
[1757853877053,0.02582745,245.72,245.64,6.88]
[1757853880257,0.02582745,245.72,245.65,6.88]
[1757853885163,0.02582745,245.72,245.66,100.46]
[1757853885660,0.02582745,245.72,245.66,107.34]
[1757853887162,0.02582745,245.72,245.66,107.36]
[1757853895370,7.05,245.71,245.66,100.48]
[1757853895574,7.07582745,245.72,245.66,100.48]
[1757853895968,7.05,245.71,245.57,6.94]
[1757853896170,7.05,245.71,245.59,6.94]
[1757853896772,0.0298534,245.67,245.59,6.94]
[1757853905180,6.9898534,245.67,245.59,6.94]
[1757853905380,6.9898534,245.67,245.6,100.42]
[1757853905581,0.0298534,245.67,245.61,6.87]
[1757853908282,0.0298534,245.67,245.63,6.87]
[1757853908575,0.0298534,245.67,245.62,62.0]
[1757853908978,0.0298534,245.67,245.63,6.87]
[1757853909178,0.0298534,245.67,245.62,62.0]
[1757853909785,0.0298534,245.67,245.63,6.87]
[1757853909978,0.0298534,245.67,245.61,6.87]
[1757853912382,6.96,245.8,245.63,6.87]
[1757853912982,6.96,245.8,245.64,62.0]
[1757853913182,6.96,245.8,245.66,6.87]
[1757853913584,6.96,245.8,245.71,0.02665441]
[1757853913785,6.96,245.8,245.72,100.42]
[1757853914486,6.96,245.88,245.71,0.02665441]
[1757853914688,6.96,245.86,245.71,0.02665441]
[1757853914888,6.96,245.84,245.7,10.4]
[1757853915084,6.96,245.82,245.7,10.4]
[1757853915287,6.96,245.8,245.76,0.03126546]
[1757853915695,7.36,245.8,245.76,0.03126546]
[1757853915888,6.96,245.79,245.76,0.03126546]
[1757853917289,0.4,245.8,245.76,0.03126546]
[1757853917591,6.96,245.88,245.76,0.03126546]
[1757853917790,6.96,245.86,245.76,0.03126546]
[1757853917992,6.96,245.84,245.76,0.03126546]
[1757853918191,6.96,245.82,245.76,0.03126546]
[1757853918391,6.96,245.8,245.76,0.03126546]
[1757853918593,6.96,245.88,245.76,0.03126546]
[1757853918795,6.96,245.86,245.76,0.03126546]
[1757853919094,6.96,245.84,245.76,0.03126546]
[1757853919291,6.96,245.82,245.76,0.03126546]
[1757853919491,6.96,245.8,245.76,0.03126546]
[1757853919794,6.96,245.78,245.76,0.03126546]
[1757853919998,6.96,245.85,245.76,0.03126546]
[1757853920292,6.96,245.83,245.76,0.03126546]
[1757853920498,6.96,245.81,245.76,0.03126546]
[1757853920694,6.96,245.79,245.76,0.03126546]
[1757853920895,6.96,245.77,245.63,6.87]
[1757853921089,6.96,245.75,245.63,6.87]
[1757853921289,4.48325464,245.82,245.63,6.87]
[1757853921290,6.96,245.73,245.63,6.87]
[1757853921484,2.94647536,245.72,245.6,46.36]
[1757853921686,6.96,245.71,245.6,46.36]
[1757853922091,6.96,245.71,245.59,169.27]
[1757853922290,6.96,245.71,245.6,100.4]
[1757853923090,6.96,245.71,245.59,169.27]
[1757853923291,6.96,245.71,245.59,68.87]
[1757853923800,6.96,245.71,245.59,6.87]
[1757853923989,2.94366116,245.7,245.59,95.37]
[1757853924190,6.96,245.71,245.59,95.37]
[1757853924889,100.4,245.86,245.59,6.87]
[1757853924890,6.96,245.69,245.59,6.87]
[1757853925096,6.96,245.67,245.55,1.74429]
[1757853925387,6.96,245.72,245.56,6.87]
[1757853925596,6.96,245.7,245.56,6.87]
[1757853925997,6.96,245.77,245.56,6.87]
[1757853926496,6.96,245.75,245.56,6.87]
[1757853926895,6.96,245.75,245.58,6.87]
[1757853927290,6.96,245.84,245.58,6.87]
[1757853927495,9.90060952,245.83,245.6,6.87]
[1757853927697,6.96,245.81,245.6,6.87]
[1757853927893,6.83,245.79,245.6,6.87]
[1757853928196,6.83,245.77,245.61,47.68]
[1757853928392,6.83,245.77,245.62,62.48]
[1757853928596,6.83,245.77,245.63,7.03]
[1757853929198,6.83,245.75,245.63,7.03]
[1757853929590,6.83,245.73,245.63,7.03]
[1757853929791,6.83,245.71,245.63,7.03]
[1757853930096,6.83,245.71,245.55,275.10429]
[1757853930097,6.83,245.71,245.56,6.37]
[1757853930395,4.48325464,245.8,245.57,62.0]
[1757853930601,6.9,245.78,245.58,6.37]
[1757853930900,6.9,245.76,245.58,6.37]
[1757853931096,6.9,245.74,245.58,6.37]
[1757853933903,4.48325464,245.86,245.58,6.37]
[1757853934203,9.83947262,245.85,245.58,6.37]
[1757853934399,6.9,245.83,245.58,6.37]
[1757853934600,105.10325464,245.87,245.58,6.37]
[1757853934601,6.9,245.81,245.58,6.37]
[1757853934994,6.9,245.81,245.6,6.37]
[1757853935398,0.02605083,245.73,245.6,6.37]
[1757853936102,0.02605083,245.73,245.56,6.37]
[1757853936399,0.02605083,245.73,245.57,6.37]
[1757853936698,6.9,245.77,245.58,100.58]
[1757853936903,6.9,245.77,245.59,6.37]
[1757853937305,6.9,245.77,245.6,23.1]
[1757853937500,6.9,245.86,245.61,6.37]
[1757853937808,105.10325464,245.87,245.61,6.37]
[1757853937809,6.9,245.84,245.61,6.37]
[1757853938106,6.9,245.82,245.63,6.37]
[1757853938308,6.9,245.8,245.63,6.37]
[1757853938608,6.9,245.78,245.63,6.37]
[1757853938805,6.9,245.86,245.63,6.37]
[1757853939009,6.9,245.84,245.63,6.37]
[1757853939208,6.9,245.82,245.63,6.37]
[1757853939505,6.9,245.8,245.59,18.04]
[1757853939807,6.9,245.78,245.59,6.37]
[1757853940009,6.9,245.76,245.59,6.37]
[1757853940207,2.93918119,245.75,245.59,6.37]
[1757853940409,9.83918119,245.74,245.59,6.37]
[1757853940607,21.16650929,245.9,245.59,6.37]
[1757853940608,6.9,245.72,245.59,6.37]
[1757853943405,6.9,245.86,245.59,6.37]
[1757853943600,6.9,245.84,245.59,6.37]
[1757853943902,6.9,245.82,245.59,6.37]
[1757853944098,6.9,245.8,245.59,6.37]
[1757853944302,6.9,245.78,245.59,6.37]
[1757853944707,2.93407605,245.77,245.59,6.37]
[1757853944907,6.94,245.85,245.55,275.10429]
[1757853945102,6.9,245.83,245.56,107.05]
[1757853945307,11.42325464,245.85,245.55,275.10429]
[1757853945308,6.9,245.81,245.61,6.37]
[1757853945504,6.9,245.79,245.62,25.62]
[1757853945709,9.83416493,245.78,245.61,6.37]
[1757853945911,6.94,245.85,245.61,6.37]
[1757853945912,6.9,245.76,245.62,69.02]
[1757853946111,6.94,245.85,245.63,6.37]
[1757853946112,6.9,245.84,245.63,6.37]
[1757853946313,6.9,245.82,245.63,6.37]
[1757853946514,6.9,245.8,245.63,6.37]
[1757853946712,6.9,245.78,245.63,6.37]
[1757853952219,6.9,245.88,245.63,6.37]
[1757853952518,6.9,245.86,245.63,6.37]
[1757853952716,6.9,245.84,245.63,6.37]
[1757853952918,2.93317062,245.83,245.63,6.37]
[1757853953216,6.9,245.84,245.63,6.37]
[1757853953414,2.93295687,245.83,245.63,6.37]
[1757853953614,6.9,245.84,245.63,6.37]
[1757853953819,2.93295687,245.83,245.63,6.37]
[1757853954119,6.9,245.84,245.63,6.37]
[1757853955018,6.9,245.84,245.65,6.65]
[1757853955618,2.93199611,245.83,245.66,23.92]
[1757853955820,6.78,245.83,245.68,6.65]
[1757853957424,6.78,245.83,245.69,32.32]
[1757853957623,6.78,245.83,245.7,6.65]
[1757853958426,6.78,245.83,245.7,68.65]
[1757853958623,0.02846051,245.79,245.7,68.65]
[1757853959127,0.02846051,245.79,245.71,6.8]
[1757853959725,0.02846051,245.79,245.73,6.8]
[1757853960128,2.93241507,245.86,245.73,6.8]
[1757853960327,0.02572146,245.78,245.73,6.8]
[1757853961425,0.02572146,245.78,245.74,0.4]
[1757853961633,0.02572146,245.78,245.75,6.8]
[1757853962328,0.02572146,245.78,245.73,6.8]
[1757853962532,0.02572146,245.78,245.77,6.8]
[1757853963027,0.02572146,245.78,245.62,6.8]
[1757853963434,6.4,245.93,245.62,6.8]
[1757853963632,6.4,245.91,245.63,16.82]
[1757853963934,6.4,245.89,245.65,6.8]
[1757853964231,6.4,245.87,245.67,6.8]
[1757853964424,2.92836155,245.88,245.67,6.8]
[1757853964425,6.4,245.85,245.67,6.8]
[1757853964626,0.025891,245.79,245.67,6.8]
[1757853965927,0.025891,245.79,245.68,62.0]
[1757853966232,0.025891,245.79,245.69,6.8]
[1757853968032,0.025891,245.79,245.7,43.24]